bitfinex-derivatives/quotes_BTCF0:USTF0_20241227
["timestamp","ask_amount","ask_price","bid_price","bid_amount"]
[1735287039833,0.001,95743.0,95741.0,0.052287]
[1735287040824,0.052275,95767.0,95731.0,0.4682]
[1735287041024,0.052275,95767.0,95731.0,0.7682]
[1735287041228,0.052276,95766.0,95752.0,0.052283]
[1735287041637,0.052282,95755.0,95732.0,0.00156689]
[1735287042020,0.052278,95762.0,95747.0,0.052285]
[1735287042221,0.1607,95769.0,95747.0,0.052285]
[1735287042425,0.05228,95757.0,95747.0,0.052285]
[1735287043135,0.05228,95757.0,95732.0,0.00156689]
[1735287043327,0.001,95762.0,95753.0,0.052282]
[1735287043530,0.001,95762.0,95732.0,0.00156689]
[1735287043531,0.054275,95766.0,95752.0,0.052283]
[1735287043828,0.001,95757.0,95752.0,0.052283]
[1735287044024,0.001,95757.0,95755.0,0.052281]
[1735287044225,0.17683827,95781.0,95769.0,0.052274]
[1735287044428,0.12457127,95781.0,95777.0,0.052269]
[1735287044624,0.12457127,95781.0,95779.0,0.052268]
[1735287045328,0.052263,95789.0,95779.0,0.052268]
[1735287045527,0.12457127,95795.0,95779.0,0.15794699]
[1735287045721,0.02126371,95828.0,95779.0,0.15794699]
[1735287045722,0.11769081,95824.0,95785.0,0.15794699]
[1735287045928,0.11769081,95824.0,95823.0,0.052244]
[1735287046333,0.61507629,95830.0,95829.0,0.052241]
[1735287046334,0.01059933,95830.0,95829.0,0.052241]
[1735287046633,0.23721193,95842.0,95841.0,0.052234]
[1735287046834,0.18118366,95879.0,95832.0,0.31589398]
[1735287047131,0.022702,95872.0,95871.0,0.052218]
[1735287048525,0.022702,95872.0,95871.0,1.14133662]
[1735287048727,0.027702,95872.0,95871.0,1.14133662]
[1735287048928,0.005,95872.0,95871.0,1.08911862]
[1735287049134,0.058218,95872.0,95871.0,1.09011862]
[1735287049330,0.1531,95872.0,95851.0,0.00156499]
[1735287049528,0.03344724,95863.0,95849.0,0.05223]
[1735287049933,0.13166888,95880.0,95849.0,0.05223]
[1735287050129,0.052219,95870.0,95849.0,0.05223]
[1735287050329,0.15794699,95870.0,95838.0,0.052236]
[1735287050529,0.052224,95861.0,95840.0,0.15794699]
[1735287050725,0.1434,95889.0,95854.0,0.052227]
[1735287050928,0.1434,95889.0,95850.0,0.15794699]
[1735287051146,0.052212,95882.0,95866.0,0.24679206]
[1735287051333,0.1434,95889.0,95866.0,0.24679206]
[1735287051532,0.1434,95889.0,95866.0,0.29901306]
[1735287051728,0.052214,95879.0,95866.0,0.24679206]
[1735287051936,0.1434,95889.0,95871.0,0.24679206]
[1735287052242,0.0232306,95886.0,95873.0,0.052217]
[1735287052742,0.1434,95889.0,95871.0,0.24679206]
[1735287053041,0.1434,95889.0,95877.0,0.24679206]
[1735287053042,0.052214,95880.0,95877.0,0.24679206]
[1735287053431,0.1577,95888.0,95877.0,0.24679206]
[1735287053641,0.052212,95883.0,95877.0,0.24679206]
[1735287054039,0.052212,95883.0,95864.0,0.24679206]
[1735287054235,0.001,95880.0,95875.0,0.052216]
[1735287054634,0.001,95880.0,95879.0,0.052214]
[1735287055036,0.001,95883.0,95868.0,0.052219]
[1735287055238,0.001,95883.0,95876.0,0.052215]
[1735287055436,0.001,95883.0,95864.0,0.24679206]
[1735287055633,0.001,95883.0,95876.0,0.052215]
[1735287056637,0.002,95880.0,95879.0,0.052213]
[1735287057336,0.1583,95892.0,95879.0,0.052213]
[1735287057739,0.15794699,95890.0,95876.0,0.006]
[1735287058041,0.052215,95878.0,95876.0,0.006]
[1735287058440,0.052215,95878.0,95876.0,0.01]
[1735287058741,0.052209,95888.0,95876.0,0.01]
[1735287058940,0.1583,95892.0,95876.0,0.01]
[1735287058941,0.052212,95882.0,95876.0,0.003]
[1735287059249,0.1583,95892.0,95876.0,0.004]
[1735287059440,0.1583,95892.0,95856.0,0.00156488]
[1735287059441,0.15794699,95890.0,95856.0,0.00156488]
[1735287059634,0.4583,95892.0,95856.0,0.00156488]
[1735287059635,0.052223,95863.0,95856.0,0.00156488]
[1735287060136,0.1379,95876.0,95856.0,0.00156488]
[1735287060638,0.1379,95876.0,95856.0,0.00356488]
[1735287060639,0.052221,95866.0,95856.0,0.00356488]
[1735287060942,0.052221,95866.0,95856.0,0.05579088]
[1735287061831,0.052221,95866.0,95856.0,0.06479088]
[1735287062032,0.052216,95875.0,95862.0,0.052223]
[1735287062229,0.1379,95876.0,95875.0,0.052216]
[1735287062444,0.152203,95900.0,95890.0,0.052208]
[1735287062840,0.1,95900.0,95895.0,0.052205]
[1735287063043,0.1,95900.0,95899.0,0.052203]
[1735287064740,0.102,95900.0,95899.0,0.052203]
[1735287065045,0.102,95900.0,95899.0,0.352203]
[1735287065340,0.052186,95930.0,95922.0,0.05219]
[1735287065553,0.1529,95939.0,95931.0,0.052185]
[1735287065842,0.102,95938.0,95936.0,0.052183]
[1735287066632,0.052168,95964.0,95936.0,0.3]
[1735287066936,0.5807,96032.0,95950.0,0.15794699]
[1735287066937,0.1509,95987.0,95950.0,0.15794699]
[1735287067131,0.102,95987.0,95970.0,0.15794699]
[1735287067337,0.102,95987.0,95971.0,0.052163]
[1735287067532,0.15794699,95980.0,95939.0,0.11825626]
[1735287067740,0.15794699,95960.0,95936.0,0.055182]
[1735287067945,0.15794699,95970.0,95930.0,0.15951043]
[1735287068146,0.1451,95969.0,95936.0,0.004]
[1735287068440,0.1451,95969.0,95942.0,0.052179]
[1735287068651,0.102,95968.0,95950.0,0.24146965]
[1735287068836,0.052157,95984.0,95967.0,0.052166]
[1735287069032,0.052157,95984.0,95950.0,0.54146965]
[1735287069236,0.102,95986.0,95950.0,0.54146965]
[1735287069237,0.102,95986.0,95970.0,0.24146965]
[1735287069440,0.102,95986.0,95984.0,0.052157]
[1735287069737,0.1,96000.0,95970.0,0.54146965]
[1735287070142,0.1,96000.0,95987.0,0.052155]
[1735287070452,0.1,96000.0,95982.0,0.052158]
[1735287070748,1e-06,96000.0,95999.0,0.052148]
[1735287070933,0.1182,96044.0,96023.0,0.052135]
[1735287071140,0.35056,96098.0,95990.0,0.24146965]
[1735287071141,0.01117826,96059.0,96046.0,0.052123]
[1735287071546,0.0521,96088.0,96069.0,0.05211]
[1735287071844,0.0521,96088.0,96026.0,0.00156197]
[1735287071845,0.052119,96054.0,96026.0,0.05369597]
[1735287072042,0.24146965,96070.0,96030.0,0.052132]
[1735287072249,0.052122,96049.0,96030.0,0.052132]
[1735287072637,0.052122,96049.0,96032.0,0.05213]
[1735287073746,0.2655,96069.0,96034.0,0.052129]
[1735287073950,0.052117,96057.0,96034.0,0.052129]
[1735287074148,0.2655,96069.0,96032.0,0.003]
[1735287074354,0.05213,96034.0,96032.0,0.003]
[1735287075247,0.1282,96049.0,96026.0,0.00156197]
[1735287075545,0.1282,96049.0,95984.0,0.24679206]
[1735287075546,0.24146965,96040.0,95984.0,0.24679206]
[1735287075751,0.052154,95990.0,95984.0,0.24679206]
[1735287075950,0.052156,95985.0,95984.0,0.05149206]
[1735287076139,0.24146965,96000.0,95978.0,0.30849007]
[1735287076140,0.052159,95979.0,95978.0,0.30849007]
[1735287076540,0.052153,95991.0,95978.0,0.30849007]
[1735287076740,0.052156,95985.0,95971.0,0.00156305]
[1735287076941,0.052157,95984.0,95971.0,0.00156305]
[1735287077136,0.24146965,96010.0,95971.0,0.00156305]
[1735287077351,0.001,95979.0,95971.0,0.00156305]
[1735287077650,0.1259,95978.0,95938.0,0.30849007]
[1735287077853,0.052168,95963.0,95946.0,0.052177]
[1735287078046,0.052163,95973.0,95940.0,0.24146965]
[1735287078246,0.1259,95978.0,95938.0,0.60849007]
[1735287078247,0.1259,95978.0,95960.0,0.24146965]
[1735287078443,0.1259,95978.0,95947.0,0.11621917]
[1735287078748,0.052165,95969.0,95951.0,0.052174]
[1735287078948,0.1259,95978.0,95951.0,0.052174]
[1735287079143,0.24146965,95970.0,95929.0,0.01564]
[1735287079352,0.052172,95957.0,95941.0,0.05218]
[1735287079755,0.052173,95955.0,95941.0,0.05218]
[1735287079945,0.052173,95955.0,95951.0,0.008]
[1735287080641,0.052174,95953.0,95941.0,0.05518]
[1735287080957,0.052174,95953.0,95941.0,0.011]
[1735287081557,0.052174,95952.0,95951.0,0.003]
[1735287081854,0.052179,95942.0,95941.0,0.003]
[1735287082047,0.052179,95942.0,95941.0,0.009]
[1735287082242,0.052162,95974.0,95941.0,0.009]
[1735287082448,0.052162,95974.0,95941.0,0.006]
[1735287082642,0.12756001,95977.0,95951.0,0.001]
[1735287082946,0.427,95977.0,95951.0,0.001]
[1735287083555,0.427,95977.0,95941.0,0.006]
[1735287083556,0.052173,95954.0,95941.0,0.006]
[1735287083752,0.24146965,95960.0,95941.0,0.01]
[1735287083961,0.052175,95950.0,95941.0,0.004]
[1735287084252,0.003,95952.0,95950.0,0.052175]
[1735287084655,0.052167,95965.0,95951.0,0.008]
[1735287085255,0.052167,95965.0,95952.0,0.052174]
[1735287085657,0.127,95977.0,95972.0,0.052163]
[1735287085855,0.127,95977.0,95952.0,0.00156332]
[1735287086058,0.127,95977.0,95966.0,0.052166]
[1735287086452,0.05216,95978.0,95966.0,0.052166]
[1735287086653,0.052153,95992.0,95978.0,0.05216]
[1735287087157,0.24146965,95990.0,95952.0,0.00156332]
[1735287087355,0.003,95977.0,95952.0,0.00156332]
[1735287088048,0.05216,95979.0,95978.0,0.009]
[1735287088448,0.24146965,95990.0,95966.0,0.003]
[1735287088955,0.052165,95969.0,95967.0,0.008999]
[1735287089363,0.052169,95961.0,95952.0,0.00156332]
[1735287089547,0.052172,95956.0,95952.0,0.01056332]
[1735287089744,0.052171,95957.0,95952.0,0.01056332]
[1735287090048,0.052155,95987.0,95952.0,0.00156332]
[1735287090049,0.23011921,95970.0,95952.0,0.00156332]
[1735287090253,0.052171,95958.0,95952.0,0.00156332]
[1735287090455,0.1227,95969.0,95952.0,0.00156332]
[1735287090649,0.052172,95956.0,95952.0,0.00156332]
[1735287090845,0.1227,95969.0,95952.0,0.00156332]
[1735287090846,0.052173,95954.0,95952.0,0.00156332]
[1735287091361,0.052173,95954.0,95952.0,0.00356332]
[1735287091859,0.24146965,95962.0,95929.0,0.052186]
[1735287092058,0.052178,95945.0,95930.0,0.052186]
[1735287092255,0.24146965,95950.0,95920.0,0.0015637]
[1735287092561,0.052191,95922.0,95920.0,0.0015637]
[1735287093153,0.24146965,95930.0,95915.0,0.30564938]
[1735287093350,0.052192,95919.0,95915.0,0.30564938]
[1735287093554,0.052192,95919.0,95905.0,0.0522]
[1735287093862,0.052192,95919.0,95900.0,0.1]
[1735287093863,0.052192,95919.0,95908.0,0.052198]
[1735287094062,0.052192,95919.0,95909.0,0.052197]
[1735287094657,0.052192,95919.0,95900.0,0.1]
[1735287094858,0.052192,95919.0,95912.0,0.052195]
[1735287095659,0.24146965,95930.0,95909.0,0.002]
[1735287095853,0.1179,95918.0,95900.0,0.1]
[1735287096051,0.1179,95918.0,95894.0,0.052206]
[1735287096251,0.1179,95918.0,95889.0,0.00156408]
[1735287096464,0.052195,95913.0,95912.0,0.002]
[1735287096652,0.052201,95904.0,95892.0,0.052206]
[1735287096960,0.052202,95900.0,95892.0,0.052206]
[1735287097463,0.4179,95918.0,95889.0,0.00156408]
[1735287097464,0.052208,95890.0,95889.0,0.00156408]
[1735287097663,0.052204,95898.0,95889.0,0.00156408]
[1735287097863,0.001,95913.0,95867.0,0.30564938]
[1735287098168,0.001,95913.0,95894.0,0.005]
[1735287098169,0.052203,95899.0,95894.0,0.005]
[1735287098858,0.001,95913.0,95889.0,0.003]
[1735287099059,0.1179,95918.0,95889.0,0.003]
[1735287099366,0.24146965,95910.0,95892.0,0.004]
[1735287099662,0.052198,95909.0,95894.0,0.001]
[1735287099861,0.03636765,95930.0,95894.0,0.003]
[1735287100055,0.4209,95939.0,95894.0,0.003]
[1735287100255,0.052191,95921.0,95900.0,0.24146965]
[1735287100459,0.24146965,95930.0,95900.0,0.052202]
[1735287100657,0.24146965,95930.0,95894.0,0.001]
[1735287100868,0.24146965,95920.0,95889.0,0.004]
[1735287101069,0.052208,95890.0,95889.0,0.004]
[1735287101753,0.052187,95929.0,95889.0,0.004]
[1735287101962,0.352187,95929.0,95889.0,0.004]
[1735287102164,0.352187,95929.0,95889.0,0.007]
[1735287102165,0.052205,95896.0,95889.0,0.007]
[1735287102561,0.052207,95891.0,95889.0,0.007]
[1735287102769,0.052207,95891.0,95889.0,0.004]
[1735287103069,0.052207,95891.0,95889.0,0.002]
[1735287103564,0.3,95891.0,95863.0,0.18465408]
[1735287103764,0.052222,95864.0,95863.0,0.18465408]
[1735287104568,0.052219,95869.0,95863.0,0.18465408]
[1735287104765,0.052222,95865.0,95863.0,0.009]
[1735287105452,5.847e-05,95872.0,95857.0,0.00156491]
[1735287105453,0.052225,95858.0,95857.0,0.00156491]
[1735287105652,5.847e-05,95872.0,95852.0,0.18465408]
[1735287105653,0.052228,95853.0,95852.0,0.18465408]
[1735287105857,0.052228,95853.0,95852.0,0.00635408]
[1735287106565,0.002,95864.0,95830.0,0.24210382]
[1735287106566,0.052224,95861.0,95830.0,9.599e-05]
[1735287106766,0.002,95864.0,95830.0,0.24210382]
[1735287107065,0.052228,95854.0,95835.0,0.052237]
[1735287107371,0.05223,95850.0,95835.0,0.052237]
[1735287107668,0.007,95853.0,95830.0,9.599e-05]
[1735287107861,0.052234,95843.0,95830.0,9.599e-05]
[1735287108055,0.002,95853.0,95837.0,0.052237]
[1735287108056,0.054228,95853.0,95837.0,0.052237]
[1735287108260,0.052229,95851.0,95837.0,0.052237]
[1735287108657,0.052229,95851.0,95835.0,0.003]
[1735287108859,0.001,95864.0,95855.0,0.052226]
[1735287109073,0.001,95864.0,95863.0,0.052222]
[1735287109756,0.052211,95885.0,95870.0,0.052219]
[1735287109955,0.1153,95901.0,95870.0,0.052219]
[1735287109956,0.052213,95881.0,95870.0,0.052219]
[1735287110176,0.24200783,95900.0,95870.0,0.052219]
[1735287110364,0.1153,95901.0,95870.0,0.052219]
[1735287110867,0.052213,95881.0,95870.0,0.052219]
[1735287111176,0.052208,95890.0,95870.0,0.052219]
[1735287111472,0.052208,95890.0,95870.0,0.057219]
[1735287111673,0.00105847,95872.0,95870.0,0.005]
[1735287112068,0.052218,95871.0,95870.0,0.005]
[1735287112268,0.052218,95871.0,95870.0,0.002]
[1735287112770,0.05215172,95871.0,95870.0,0.002]
[1735287112969,5.847e-05,95872.0,95870.0,0.002]
[1735287113574,0.052218,95871.0,95870.0,0.002]
[1735287114375,0.052218,95871.0,95870.0,0.001]
[1735287114676,0.055218,95871.0,95870.0,0.001]
[1735287115067,0.004,95871.0,95854.0,0.052227]
[1735287115568,0.052221,95866.0,95855.0,0.052226]
[1735287115869,0.004,95871.0,95860.0,0.052224]
[1735287116074,0.004,95871.0,95850.0,0.24357263]
[1735287116262,0.004,95871.0,95850.0,0.54357263]
[1735287116668,0.001,95871.0,95850.0,0.54357263]
[1735287116874,0.001,95871.0,95864.0,0.052222]
[1735287117378,0.002,95871.0,95864.0,0.052222]
[1735287117770,5.847e-05,95872.0,95864.0,0.052222]
[1735287117977,0.001,95871.0,95864.0,0.052222]
[1735287118272,5.847e-05,95872.0,95864.0,0.052222]
[1735287118576,0.052228,95853.0,95850.0,0.0015648]
[1735287118874,0.052224,95861.0,95850.0,0.0015648]
[1735287119177,0.052226,95857.0,95850.0,0.0015648]
[1735287119476,0.001,95871.0,95850.0,0.0015648]
[1735287120079,5.847e-05,95872.0,95850.0,0.24357263]
[1735287120279,0.05222,95869.0,95855.0,0.052226]
[1735287120478,0.05222,95869.0,95850.0,0.24357263]
[1735287120479,5.847e-05,95872.0,95850.0,0.0015648]
[1735287120973,5.847e-05,95872.0,95859.0,0.052224]
[1735287120974,0.052218,95871.0,95859.0,0.052224]
[1735287121879,0.052219,95869.0,95859.0,0.052224]
[1735287122471,0.052219,95869.0,95850.0,0.24557263]
[1735287122678,0.052208,95889.0,95859.0,0.003]
[1735287122875,0.052208,95889.0,95878.0,0.052214]
[1735287123080,0.09282278,95905.0,95878.0,0.052214]
[1735287123278,0.09282278,95905.0,95859.0,0.003]
[1735287123485,0.052222,95863.0,95859.0,0.003]
[1735287123678,0.052224,95861.0,95859.0,0.003]
[1735287124784,0.052224,95861.0,95852.0,0.052228]
[1735287124985,0.052225,95859.0,95851.0,0.1173]
[1735287125179,0.54200783,95890.0,95850.0,0.0015648]
[1735287125384,0.052222,95864.0,95850.0,0.0015648]
[1735287125589,0.052222,95864.0,95855.0,0.31052793]
[1735287125787,0.052222,95864.0,95859.0,0.001]
[1735287126087,0.052224,95860.0,95859.0,0.001]
[1735287126479,0.052224,95860.0,95855.0,0.31052793]
[1735287127381,0.052226,95856.0,95855.0,0.31052793]
[1735287128381,0.052226,95856.0,95850.0,0.0015648]
[1735287128382,0.052227,95854.0,95853.0,0.37263352]
[1735287129286,0.002,95860.0,95858.0,0.052225]
[1735287129478,0.052208,95889.0,95874.0,0.052216]
[1735287129678,0.09282278,95884.0,95879.0,0.15693766]
[1735287129885,0.09282278,95884.0,95874.0,0.15693766]
[1735287130187,0.09282278,95884.0,95873.0,0.052217]
[1735287130582,0.09282278,95884.0,95877.0,0.052215]
[1735287130786,0.09282278,95884.0,95870.0,0.15693766]
[1735287130787,0.09282278,95884.0,95882.0,0.052212]
[1735287130977,0.09282278,95884.0,95876.0,0.052215]
[1735287131175,0.09282278,95884.0,95877.0,0.052214]
[1735287131176,0.001,95884.0,95877.0,0.052214]
[1735287131376,0.052216,95875.0,95874.0,0.66563371]
[1735287131584,0.001,95884.0,95874.0,0.66563371]
[1735287131789,0.052216,95875.0,95874.0,0.66563371]
[1735287132489,0.052216,95875.0,95868.0,0.37297538]
[1735287132792,0.001,95884.0,95874.0,0.001]
[1735287133177,0.001,95884.0,95880.0,0.052213]
[1735287133483,0.09282278,95907.0,95874.0,0.003]
[1735287133700,0.052209,95888.0,95874.0,0.003]
[1735287133885,0.15693766,95910.0,95880.0,0.31078612]
[1735287134086,0.052212,95882.0,95880.0,0.31078612]
[1735287134892,0.052212,95882.0,95880.0,0.31578612]
[1735287135081,0.052212,95882.0,95880.0,0.005]
[1735287136293,0.052213,95880.0,95875.0,0.31078612]
[1735287136482,0.052213,95880.0,95874.0,0.31078612]
[1735287136680,0.052214,95879.0,95874.0,0.31078612]
[1735287136987,0.052216,95875.0,95874.0,0.31078612]
[1735287138194,0.052216,95875.0,95855.0,0.052226]
[1735287138195,0.052218,95872.0,95868.0,0.31078612]
[1735287138392,0.052207,95892.0,95868.0,0.31078612]
[1735287138690,0.052219,95870.0,95868.0,0.31078612]
[1735287139392,0.052219,95870.0,95869.0,0.24882065]
[1735287140887,0.052219,95870.0,95868.0,0.001]
[1735287141086,0.09282278,95883.0,95868.0,0.001]
[1735287141288,0.052214,95879.0,95873.0,0.15693766]
[1735287142086,0.09282278,95890.0,95872.0,0.24882065]
[1735287142287,0.09282278,95890.0,95888.0,0.052208]
[1735287142995,0.052202,95902.0,95888.0,0.052208]
[1735287143193,0.09282278,95905.0,95893.0,0.052206]
[1735287143399,0.09282278,95905.0,95904.0,0.0522]
[1735287144089,0.12395683,95910.0,95904.0,0.3]
[1735287144288,0.12395683,95910.0,95909.0,0.052197]
[1735287144692,0.052188,95927.0,95917.0,0.052193]
[1735287145901,0.052188,95927.0,95918.0,0.052192]
[1735287146094,0.1166,95949.0,95917.0,0.24882065]
[1735287146402,0.05219,95923.0,95917.0,0.24882065]
[1735287146594,0.1166,95949.0,95917.0,0.24882065]
[1735287146781,0.05219,95923.0,95917.0,0.24882065]
[1735287146984,0.05219,95923.0,95910.0,0.45795531]
[1735287147186,0.001,95927.0,95918.0,0.004]
[1735287147387,0.052191,95922.0,95918.0,0.004]
[1735287147797,0.052191,95922.0,95917.0,0.007]
[1735287148191,0.052191,95922.0,95917.0,0.3]
[1735287148392,0.004,95927.0,95926.0,0.052188]
[1735287148792,0.004,95927.0,95919.0,0.052192]
[1735287148992,0.004,95927.0,95911.0,0.5026]
[1735287149196,0.004,95927.0,95912.0,0.052195]
[1735287149494,0.056188,95927.0,95915.0,0.052194]
[1735287149700,0.004,95927.0,95914.0,0.24882065]
[1735287149884,0.003,95927.0,95914.0,0.24882065]
[1735287150198,0.1149,95947.0,95917.0,0.002]
[1735287150494,0.052187,95928.0,95920.0,0.15693766]
[1735287150699,0.001,95927.0,95920.0,0.15693766]
[1735287150895,0.05219,95923.0,95920.0,0.15693766]
[1735287151097,0.05219,95923.0,95910.0,0.15693766]
[1735287151605,0.05219,95923.0,95917.0,0.005]
[1735287152396,0.052192,95918.0,95917.0,0.005]
[1735287152595,0.052188,95926.0,95917.0,0.005]
[1735287152807,0.001,95927.0,95926.0,0.052188]
[1735287152808,0.004,95927.0,95926.0,0.052188]
[1735287153293,0.052175,95950.0,95937.0,0.052182]
[1735287154103,0.052175,95950.0,95940.0,0.15693766]
[1735287154296,0.12395683,95960.0,95940.0,0.15693766]
[1735287154595,0.15353786,95968.0,95967.0,0.052166]
[1735287154793,0.0129563,95968.0,95967.0,0.052166]
[1735287154996,0.0129563,95968.0,95967.0,0.50898604]
[1735287155195,0.0129563,95980.0,95979.0,0.052159]
[1735287155694,0.0129563,95980.0,95979.0,0.352159]
[1735287156209,0.18424544,95986.0,95979.0,0.352159]
[1735287156210,0.18424544,95986.0,95985.0,0.052156]
[1735287156793,0.41991573,96017.0,95979.0,0.01764506]
[1735287156794,0.05214,96014.0,95979.0,0.01764506]
[1735287156988,0.002,95980.0,95979.0,0.052159]
[1735287157195,0.05214,96014.0,95998.0,0.052149]
[1735287158398,0.152148,96000.0,95989.0,0.052153]
[1735287158599,0.152148,96000.0,95980.0,0.15693766]
[1735287158897,0.052155,95988.0,95978.0,0.00156258]
[1735287159104,0.052155,95988.0,95978.0,0.21065924]
[1735287159404,0.003,95986.0,95978.0,0.15850024]
[1735287159703,0.052153,95991.0,95978.0,0.00156258]
[1735287159887,0.052153,95991.0,95980.0,0.15693766]
[1735287160087,0.052153,95991.0,95989.0,0.003]
[1735287160596,0.052153,95991.0,95980.0,0.15693766]
[1735287160796,0.1,96000.0,95978.0,0.00256258]
[1735287161002,0.052159,95980.0,95978.0,0.00456258]
[1735287161204,0.052161,95976.0,95956.0,0.052172]
[1735287161503,0.052161,95976.0,95950.0,0.15693766]
[1735287161504,0.052149,95999.0,95950.0,0.15693766]
[1735287161701,0.052162,95974.0,95960.0,0.15693766]
[1735287161998,0.15693766,95990.0,95950.0,0.15693766]
[1735287162302,0.15693766,95980.0,95942.0,0.052179]
[1735287162598,0.01003669,95979.0,95970.0,0.15693766]
[1735287162899,0.01003669,95979.0,95954.0,0.052173]
[1735287163404,0.05216,95978.0,95960.0,0.15693766]
[1735287163595,0.052161,95977.0,95960.0,0.15693766]
[1735287163795,0.052164,95972.0,95954.0,0.052173]
[1735287164100,0.002,95979.0,95960.0,0.15693766]
[1735287164301,0.001,95979.0,95969.0,0.15693766]
[1735287164494,0.001,95979.0,95971.0,0.052163]
[1735287165694,0.052155,95987.0,95971.0,0.052163]
[1735287165897,0.001,95972.0,95971.0,0.052163]
[1735287167100,0.003,95979.0,95971.0,0.052163]
[1735287167302,0.003,95979.0,95973.0,0.052162]
[1735287167502,0.003,95979.0,95969.0,0.15693766]
[1735287167904,0.003,95979.0,95975.0,0.052161]
[1735287168203,0.003,95979.0,95969.0,0.15693766]
[1735287168701,0.003,95972.0,95971.0,0.002]
[1735287169091,0.003,95972.0,95971.0,0.41119644]
[1735287169295,0.01820583,96013.0,95975.0,0.002]
[1735287169599,0.01017779,95999.0,95985.0,0.052156]
[1735287169902,0.01820583,96013.0,95999.0,0.052148]
[1735287170499,0.1047,96026.0,95990.0,0.15693766]
[1735287170692,0.05214,96016.0,95990.0,0.15693766]
[1735287171004,0.05214,96016.0,95996.0,0.05215]
[1735287171195,0.05214,96016.0,95990.0,0.15693766]
[1735287171595,0.05214,96014.0,95990.0,0.15693766]
[1735287171791,0.01014863,95999.0,95975.0,0.001]
[1735287171996,0.01014863,95999.0,95950.0,0.2026]
[1735287171997,0.01014863,95998.0,95980.0,0.15693766]
[1735287172210,0.01014863,95997.0,95978.0,0.24882065]
[1735287172395,0.052153,95991.0,95978.0,0.24882065]
[1735287172600,0.052154,95989.0,95985.0,0.001]
[1735287172805,0.25893766,96000.0,95985.0,0.001]
[1735287172806,0.01023033,95988.0,95985.0,0.001]
[1735287173000,0.102,96000.0,95985.0,0.001]
[1735287173201,0.01022883,95999.0,95995.0,0.05215]
[1735287173396,0.1,96000.0,95995.0,0.05215]
[1735287173397,0.01022883,95998.0,95995.0,0.05215]
[1735287173602,0.01022883,95997.0,95995.0,0.05215]
[1735287173901,0.01022883,95996.0,95995.0,0.05215]
[1735287174105,0.01022883,95999.0,95980.0,0.15893766]
[1735287174304,0.01022883,95998.0,95986.0,0.052155]
[1735287174603,0.01022883,95997.0,95986.0,0.052155]
[1735287174907,0.001,95989.0,95983.0,0.24882065]
[1735287175306,0.01027658,95988.0,95983.0,0.24882065]
[1735287175506,0.01027658,95987.0,95983.0,0.24882065]
[1735287175707,0.01027658,95992.0,95983.0,0.24882065]
[1735287175908,0.01026007,95991.0,95986.0,0.001]
[1735287176107,0.01026007,95990.0,95989.0,0.052154]
[1735287176610,0.01026007,95990.0,95983.0,0.001]
[1735287176809,0.052157,95984.0,95983.0,0.001]
[1735287177015,0.06241707,95984.0,95983.0,0.001]
[1735287177206,0.05216,95978.0,95977.0,0.24882065]
[1735287177412,0.052165,95969.0,95962.0,0.37297538]
[1735287177710,0.06242507,95969.0,95962.0,0.37297538]
[1735287178499,0.052168,95963.0,95962.0,0.37297538]
[1735287178722,0.052174,95952.0,95949.0,0.42846914]
[1735287178914,0.052175,95950.0,95943.0,0.00056]
[1735287179208,0.052175,95950.0,95940.0,0.3085619]
[1735287179209,0.01026007,95949.0,95940.0,0.3085619]
[1735287179416,0.01026007,95948.0,95940.0,0.3085619]
[1735287179715,0.01026007,95947.0,95940.0,0.3085619]
[1735287180018,0.01026007,95946.0,95940.0,0.3085619]
[1735287180315,0.052178,95944.0,95931.0,0.052185]
[1735287180514,0.01026007,95943.0,95931.0,0.052185]
[1735287180713,0.01026007,95942.0,95932.0,0.052185]
[1735287181011,0.01014474,95941.0,95932.0,0.052185]
[1735287181217,0.01014474,95940.0,95932.0,0.052185]
[1735287181407,0.01014474,95939.0,95932.0,0.052185]
[1735287181712,0.01015154,95938.0,95932.0,0.052185]
[1735287181901,0.01015154,95937.0,95932.0,0.052185]
[1735287182107,0.052184,95933.0,95932.0,0.002]
[1735287182310,0.06233554,95933.0,95932.0,0.004]
[1735287182613,0.06233554,95933.0,95932.0,0.003]
[1735287183011,0.06233554,95933.0,95932.0,0.002]
[1735287183515,0.06233554,95933.0,95932.0,0.001]
[1735287183713,0.01015154,95933.0,95932.0,0.001]
[1735287184017,0.23641144,95967.0,95932.0,0.001]
[1735287184317,0.052168,95963.0,95957.0,0.15693766]
[1735287184617,0.052168,95963.0,95950.0,0.052175]
[1735287184913,0.052168,95963.0,95930.0,0.00156367]
[1735287184914,0.15693766,95960.0,95930.0,0.00156367]
[1735287185101,0.004,95933.0,95930.0,0.05374867]
[1735287185304,0.004,95933.0,95932.0,0.052185]
[1735287185521,0.052181,95940.0,95930.0,0.00156367]
[1735287185706,0.052181,95940.0,95930.0,0.05374867]
[1735287186012,0.006,95963.0,95937.0,0.052182]
[1735287186013,0.005,95963.0,95937.0,0.052182]
[1735287186209,0.052175,95950.0,95937.0,0.052182]
[1735287186405,0.001,95960.0,95930.0,0.01056367]
[1735287186605,0.15693766,95950.0,95930.0,0.01056367]
[1735287186817,0.052176,95948.0,95930.0,0.01056367]
[1735287187002,0.052182,95938.0,95930.0,0.01056367]
[1735287187310,0.052184,95933.0,95930.0,0.01056367]
[1735287187615,0.052184,95933.0,95930.0,0.00356367]
[1735287188209,0.052184,95933.0,95930.0,0.00156367]
[1735287188413,0.052184,95933.0,95930.0,0.00356367]
[1735287189321,0.05218,95941.0,95930.0,0.00356367]
[1735287189506,0.052184,95935.0,95930.0,0.05574967]
[1735287189814,0.052184,95934.0,95930.0,0.00356367]